[Event "*** Titled Tuesday Blitz"]
[Site "Chess.com"]
[Date "2019.11.05"]
[Round "8"]
[White "SHIVACalypso"]
[Black "NikolaMa2000"]
[Result "1-0"]
[WhiteElo "2280"]
[BlackElo "2028"]
[TimeControl "180+2"]
[EndTime "14:56:35 PST"]
[Termination "SHIVACalypso won by resignation"]

1. Nf3 {[%clk 0:03:01.9]} 1... d5 {[%clk 0:02:59.6]} 2. c4 {[%clk 0:02:59.9]}
2... c6 {[%clk 0:02:59.5]} 3. d4 {[%clk 0:02:59.7]} 3... Nf6 {[%clk 0:02:59.5]}
4. g3 {[%clk 0:02:59.4]} 4... dxc4 {[%clk 0:02:44.7]} 5. a4 {[%clk 0:02:56.8]}
5... Bf5 {[%clk 0:02:41.8]} 6. Na3 {[%clk 0:02:46.7]} 6... e6 {[%clk 0:02:39.1]}
7. Nxc4 {[%clk 0:02:41.7]} 7... Nbd7 {[%clk 0:02:29.5]} 8. Bg2 {[%clk
0:02:41.6]} 8... Bb4+ {[%clk 0:02:25.9]} 9. Bd2 {[%clk 0:02:41.2]} 9... Be7
{[%clk 0:02:25.3]} 10. O-O {[%clk 0:02:41.5]} 10... O-O {[%clk 0:02:18.9]} 11.
Bf4 {[%clk 0:02:36.7]} 11... Nb6 {[%clk 0:02:13.3]} 12. Nce5 {[%clk 0:02:32.6]}
12... Nfd5 {[%clk 0:02:07.8]} 13. Bd2 {[%clk 0:02:29.4]} 13... a5 {[%clk
0:01:57.9]} 14. Re1 {[%clk 0:02:24]} 14... Bg6 {[%clk 0:01:54.1]} 15. e4 {[%clk
0:02:15.8]} 15... Nf6 {[%clk 0:01:31.3]} 16. Nxg6 {[%clk 0:02:16.4]} 16... hxg6
{[%clk 0:01:31.6]} 17. Bc3 {[%clk 0:02:14]} 17... c5 {[%clk 0:01:27.4]} 18. Qe2
{[%clk 0:02:08.5]} 18... cxd4 {[%clk 0:01:18.4]} 19. Nxd4 {[%clk 0:01:53.1]}
19... Rc8 {[%clk 0:01:15]} 20. Rad1 {[%clk 0:01:52.6]} 20... Nbd7 {[%clk
0:01:04.6]} 21. Nb5 {[%clk 0:01:52.3]} 21... Qb6 {[%clk 0:01:01]} 22. e5 {[%clk
0:01:45.4]} 22... Nd5 {[%clk 0:00:56.8]} 23. Bxd5 {[%clk 0:01:45.9]} 23... exd5
{[%clk 0:00:58.7]} 24. Rxd5 {[%clk 0:01:47]} 24... Nc5 {[%clk 0:00:57.1]} 25.
Qc2 {[%clk 0:01:30.5]} 25... Ne6 {[%clk 0:00:42.4]} 26. Rd7 {[%clk 0:01:21]}
26... Bb4 {[%clk 0:00:41.8]} 27. Red1 {[%clk 0:01:12.1]} 27... Nc5 {[%clk
0:00:38.2]} 28. R7d6 {[%clk 0:01:04.8]} 28... Rc6 {[%clk 0:00:36.7]} 29. Bxb4
{[%clk 0:01:02.1]} 29... axb4 {[%clk 0:00:35.7]} 30. Rxc6 {[%clk 0:01:02.6]}
30... bxc6 {[%clk 0:00:34.7]} 31. Nd4 {[%clk 0:00:59.4]} 31... Rd8 {[%clk
0:00:28.8]} 32. Rc1 {[%clk 0:00:49.7]} 32... Nxa4 {[%clk 0:00:17.1]} 33. Nxc6
{[%clk 0:00:40.1]} 33... b3 {[%clk 0:00:14.2]} 34. Qe4 {[%clk 0:00:26.7]} 34...
Rd2 {[%clk 0:00:11]} 35. Rf1 {[%clk 0:00:19]} 35... Nxb2 {[%clk 0:00:08.4]} 36.
Ne7+ {[%clk 0:00:19.6]} 36... Kf8 {[%clk 0:00:08.8]} 37. Nd5 {[%clk 0:00:21]}
37... Qc6 {[%clk 0:00:08.9]} 38. Qb4+ {[%clk 0:00:19]} 38... Kg8 {[%clk
0:00:08.3]} 39. Qxd2 {[%clk 0:00:19.3]} 39... Nc4 {[%clk 0:00:08.8]} 40. Ne7+
{[%clk 0:00:19.5]} 40... Kf8 {[%clk 0:00:08.8]} 41. Nxc6 {[%clk 0:00:21.4]}
41... Nxd2 {[%clk 0:00:09]} 42. Rd1 {[%clk 0:00:13.9]} 42... b2 {[%clk
0:00:09.8]} 43. Nd4 {[%clk 0:00:12.7]} 43... b1=Q {[%clk 0:00:10.6]} 44. Rxb1
{[%clk 0:00:14.3]} 44... Nxb1 {[%clk 0:00:12.4]} 45. f4 {[%clk 0:00:15.1]} 45...
Nc3 {[%clk 0:00:13.4]} 46. Kf2 {[%clk 0:00:15.8]} 46... Nd5 {[%clk 0:00:14.6]}
47. Kf3 {[%clk 0:00:16.5]} 47... Ke7 {[%clk 0:00:15.7]} 48. Nc6+ {[%clk
0:00:16.6]} 48... Ke6 {[%clk 0:00:15.2]} 49. Nd4+ {[%clk 0:00:18.1]} 49... Ke7
{[%clk 0:00:16.3]} 50. g4 {[%clk 0:00:19.1]} 50... Nc3 {[%clk 0:00:16.6]} 51. h4
{[%clk 0:00:18.4]} 51... Nd5 {[%clk 0:00:17.6]} 52. f5 {[%clk 0:00:18.3]} 52...
gxf5 {[%clk 0:00:17.4]} 53. gxf5 {[%clk 0:00:20.2]} 53... Kf8 {[%clk 0:00:17.4]}
54. Ke4 {[%clk 0:00:18.6]} 54... Ne7 {[%clk 0:00:18.6]} 55. Nf3 {[%clk
0:00:17.3]} 55... Kg8 {[%clk 0:00:19.4]} 56. Ng5 {[%clk 0:00:17.1]} 56... f6
{[%clk 0:00:17.3]} 57. Ne6 {[%clk 0:00:14.3]} 57... fxe5 {[%clk 0:00:16.3]} 58.
Kxe5 {[%clk 0:00:16.2]} 58... Kh7 {[%clk 0:00:15.3]} 59. Ng5+ {[%clk 0:00:16.2]}
59... Kh6 {[%clk 0:00:16.1]} 60. Ke6 {[%clk 0:00:16.4]} 60... Ng8 {[%clk
0:00:11.9]} 61. Kf7 {[%clk 0:00:16.9]} 61... Nf6 {[%clk 0:00:11.5]} 62. Ne6
{[%clk 0:00:16.9]} 62... Ne4 {[%clk 0:00:03.4]} 63. Nxg7 {[%clk 0:00:16.2]}
63... Ng3 {[%clk 0:00:04.7]} 64. f6 {[%clk 0:00:16.4]} 64... Ne4 {[%clk
0:00:05.4]} 65. Nf5+ {[%clk 0:00:17.3]} 65... Kh5 {[%clk 0:00:06]} 66. Kg7
{[%clk 0:00:15.9]} 66... Ng3 {[%clk 0:00:02.2]} 67. Nxg3+ {[%clk 0:00:15.4]}
67... Kxh4 {[%clk 0:00:04.1]} 68. f7 {[%clk 0:00:16.4]} 1-0

[Event "*** Titled Tuesday Blitz"]
[Site "Chess.com"]
[Date "2019.11.05"]
[Round "8"]
[White "Astaneh"]
[Black "arminmusovic"]
[Result "1/2-1/2"]
[WhiteElo "2564"]
[BlackElo "2436"]
[TimeControl "180+2"]
[EndTime "14:57:03 PST"]
[Termination "Game drawn - insufficient material"]

1. e4 {[%clk 0:02:51.6]} 1... c6 {[%clk 0:03:00.8]} 2. d4 {[%clk 0:02:41.2]}
2... d5 {[%clk 0:03:02.7]} 3. exd5 {[%clk 0:02:42.7]} 3... cxd5 {[%clk
0:03:04.5]} 4. Bd3 {[%clk 0:02:44]} 4... Nc6 {[%clk 0:03:06.1]} 5. c3 {[%clk
0:02:45.1]} 5... Nf6 {[%clk 0:03:07.7]} 6. h3 {[%clk 0:02:43]} 6... g6 {[%clk
0:03:09.6]} 7. Nf3 {[%clk 0:02:44.4]} 7... Bg7 {[%clk 0:03:11]} 8. O-O {[%clk
0:02:42.1]} 8... O-O {[%clk 0:03:11.3]} 9. Qc2 {[%clk 0:02:42.6]} 9... Re8
{[%clk 0:03:12.5]} 10. Re1 {[%clk 0:02:43.8]} 10... Nd7 {[%clk 0:03:11.2]} 11.
Bf4 {[%clk 0:02:36.1]} 11... e5 {[%clk 0:03:10.1]} 12. dxe5 {[%clk 0:02:37.2]}
12... Ndxe5 {[%clk 0:03:12]} 13. Nxe5 {[%clk 0:02:35.3]} 13... Bxe5 {[%clk
0:03:10.8]} 14. Bxe5 {[%clk 0:02:29.5]} 14... Nxe5 {[%clk 0:03:12.7]} 15. Na3
{[%clk 0:02:13.8]} 15... Bxh3 {[%clk 0:03:04.2]} 16. f4 {[%clk 0:02:11.1]} 16...
Nxd3 {[%clk 0:02:55.2]} 17. Qxd3 {[%clk 0:02:11.7]} 17... Rxe1+ {[%clk
0:02:54.7]} 18. Rxe1 {[%clk 0:02:12.4]} 18... Bf5 {[%clk 0:02:54.9]} 19. Qd4
{[%clk 0:02:13.3]} 19... Qb6 {[%clk 0:02:53.3]} 20. Qxb6 {[%clk 0:02:01.3]}
20... axb6 {[%clk 0:02:55.2]} 21. Re7 {[%clk 0:02:02.7]} 21... Ra7 {[%clk
0:02:46.4]} 22. Kf2 {[%clk 0:01:57.1]} 22... h5 {[%clk 0:02:45.1]} 23. Ke3
{[%clk 0:01:57.5]} 23... Kf8 {[%clk 0:02:42]} 24. Rc7 {[%clk 0:01:57.5]} 24...
h4 {[%clk 0:02:39.8]} 25. Kf3 {[%clk 0:01:43.5]} 25... Ke8 {[%clk 0:02:03.6]}
26. Nb5 {[%clk 0:01:44.3]} 26... Rxa2 {[%clk 0:02:03.2]} 27. Nd6+ {[%clk
0:01:45]} 27... Kd8 {[%clk 0:02:01.6]} 28. Rxb7 {[%clk 0:01:41.8]} 28... Be4+
{[%clk 0:02:00.3]} 29. Kg4 {[%clk 0:01:31.6]} 29... Rxb2 {[%clk 0:01:53.3]} 30.
Nxf7+ {[%clk 0:01:32]} 30... Ke8 {[%clk 0:01:54.8]} 31. Nd6+ {[%clk 0:01:32.5]}
31... Kf8 {[%clk 0:01:56.5]} 32. Kg5 {[%clk 0:01:27]} 32... Rf2 {[%clk
0:01:31.7]} 33. Rxb6 {[%clk 0:00:57.3]} 33... Ke7 {[%clk 0:01:32.5]} 34. Kxh4
{[%clk 0:00:38.3]} 34... Bxg2 {[%clk 0:01:29.4]} 35. Kg3 {[%clk 0:00:34]} 35...
Rc2 {[%clk 0:01:30.2]} 36. f5 {[%clk 0:00:33.2]} 36... gxf5 {[%clk 0:01:22.1]}
37. Nxf5+ {[%clk 0:00:33.2]} 37... Kd7 {[%clk 0:01:22.3]} 38. Rb7+ {[%clk
0:00:21.5]} 38... Kd8 {[%clk 0:01:16.8]} 39. Kf4 {[%clk 0:00:12.7]} 39... d4
{[%clk 0:01:12.6]} 40. Nxd4 {[%clk 0:00:08.3]} 40... Rxc3 {[%clk 0:01:09.2]} 41.
Ne6+ {[%clk 0:00:07.4]} 41... Ke8 {[%clk 0:01:06.2]} 42. Rg7 {[%clk 0:00:09.3]}
42... Bd5 {[%clk 0:00:52]} 43. Nc7+ {[%clk 0:00:10.5]} 43... Kf8 {[%clk
0:00:51.9]} 44. Rd7 {[%clk 0:00:07.9]} 44... Bf7 {[%clk 0:00:50.5]} 45. Ke5
{[%clk 0:00:07.9]} 45... Rc6 {[%clk 0:00:48.4]} 46. Nd5 {[%clk 0:00:06.4]} 46...
Re6+ {[%clk 0:00:48.5]} 47. Kd4 {[%clk 0:00:07.4]} 47... Ra6 {[%clk 0:00:49.1]}
48. Ke5 {[%clk 0:00:08]} 48... Re6+ {[%clk 0:00:50.2]} 49. Kd4 {[%clk
0:00:09.1]} 49... Rh6 {[%clk 0:00:52.1]} 50. Rd8+ {[%clk 0:00:10.4]} 50... Kg7
{[%clk 0:00:52.3]} 51. Ne3 {[%clk 0:00:11.5]} 51... Rh4+ {[%clk 0:00:52.4]} 52.
Ke5 {[%clk 0:00:13]} 52... Ra4 {[%clk 0:00:49.8]} 53. Nf5+ {[%clk 0:00:13.9]}
53... Kh7 {[%clk 0:00:51.2]} 54. Kf6 {[%clk 0:00:14.1]} 54... Ra6+ {[%clk
0:00:38.1]} 55. Ke7 {[%clk 0:00:09.7]} 55... Bg8 {[%clk 0:00:28.4]} 56. Nd6
{[%clk 0:00:08.8]} 56... Kg7 {[%clk 0:00:26.1]} 57. Rd7 {[%clk 0:00:05.7]} 57...
Kg6 {[%clk 0:00:23.5]} 58. Rd8 {[%clk 0:00:05.4]} 58... Ra7+ {[%clk 0:00:23]}
59. Kf8 {[%clk 0:00:05.9]} 59... Be6 {[%clk 0:00:23.9]} 60. Re8 {[%clk
0:00:05.6]} 60... Ba2 {[%clk 0:00:25.1]} 61. Re2 {[%clk 0:00:06]} 61... Kf6
{[%clk 0:00:22]} 62. Ne8+ {[%clk 0:00:04.5]} 62... Kg6 {[%clk 0:00:22.3]} 63.
Rg2+ {[%clk 0:00:05.7]} 63... Kf5 {[%clk 0:00:22.1]} 64. Nd6+ {[%clk 0:00:06.7]}
64... Kf4 {[%clk 0:00:23.7]} 65. Nb5 {[%clk 0:00:07]} 65... Ra8+ {[%clk
0:00:23.4]} 66. Ke7 {[%clk 0:00:08.4]} 66... Bd5 {[%clk 0:00:24.2]} 67. Rd2
{[%clk 0:00:08.4]} 67... Bf3 {[%clk 0:00:23.8]} 68. Rd4+ {[%clk 0:00:08.7]}
68... Ke3 {[%clk 0:00:24.4]} 69. Rd6 {[%clk 0:00:08.6]} 69... Rh8 {[%clk
0:00:23.8]} 70. Re6+ {[%clk 0:00:09.8]} 70... Kf4 {[%clk 0:00:24.6]} 71. Rf6+
{[%clk 0:00:10.9]} 71... Ke3 {[%clk 0:00:25.7]} 72. Nd6 {[%clk 0:00:12.2]} 72...
Ra8 {[%clk 0:00:25.4]} 73. Nf5+ {[%clk 0:00:11.6]} 73... Kd3 {[%clk 0:00:24.5]}
74. Rd6+ {[%clk 0:00:12.2]} 74... Kc3 {[%clk 0:00:25]} 75. Ng7 {[%clk
0:00:11.9]} 75... Be2 {[%clk 0:00:24.7]} 76. Ne6 {[%clk 0:00:12.7]} 76... Ra7+
{[%clk 0:00:25.3]} 77. Kf6 {[%clk 0:00:13.9]} 77... Bc4 {[%clk 0:00:26]} 78. Nd4
{[%clk 0:00:13.6]} 78... Ra6 {[%clk 0:00:24.5]} 79. Rxa6 {[%clk 0:00:10.2]}
79... Bxa6 {[%clk 0:00:25.4]} 1/2-1/2

[Event "*** Titled Tuesday Blitz"]
[Site "Chess.com"]
[Date "2019.11.05"]
[Round "8"]
[White "TomasKapitanchuk"]
[Black "zim0ne"]
[Result "1-0"]
[WhiteElo "2521"]
[BlackElo "2616"]
[TimeControl "180+2"]
[EndTime "14:57:07 PST"]
[Termination "TomasKapitanchuk won by resignation"]

1. e4 {[%clk 0:03:01.9]} 1... e5 {[%clk 0:02:58.9]} 2. Nf3 {[%clk 0:03:03]} 2...
Nc6 {[%clk 0:02:59.6]} 3. Bc4 {[%clk 0:03:04.5]} 3... Bc5 {[%clk 0:02:54.2]} 4.
c3 {[%clk 0:03:05.6]} 4... Nf6 {[%clk 0:02:50.6]} 5. d3 {[%clk 0:03:06.9]} 5...
d6 {[%clk 0:02:47.3]} 6. a4 {[%clk 0:03:07.7]} 6... a6 {[%clk 0:02:47.1]} 7. O-O
{[%clk 0:03:04.7]} 7... Ba7 {[%clk 0:02:48.2]} 8. Re1 {[%clk 0:03:04.9]} 8...
O-O {[%clk 0:02:47.7]} 9. h3 {[%clk 0:03:04.7]} 9... Ne7 {[%clk 0:02:48.2]} 10.
d4 {[%clk 0:03:04.5]} 10... Ng6 {[%clk 0:02:47.5]} 11. Nbd2 {[%clk 0:03:04.1]}
11... Re8 {[%clk 0:02:44.2]} 12. Bf1 {[%clk 0:03:03.4]} 12... c6 {[%clk
0:02:42.2]} 13. a5 {[%clk 0:03:02.6]} 13... Qc7 {[%clk 0:02:39.7]} 14. Qc2
{[%clk 0:03:00.1]} 14... Nh5 {[%clk 0:02:36.8]} 15. Nc4 {[%clk 0:02:58.8]} 15...
Nhf4 {[%clk 0:02:32.9]} 16. Be3 {[%clk 0:02:53.3]} 16... Be6 {[%clk 0:02:32.4]}
17. dxe5 {[%clk 0:02:43.1]} 17... dxe5 {[%clk 0:02:25.6]} 18. Bxa7 {[%clk
0:02:41.2]} 18... Rxa7 {[%clk 0:02:27.5]} 19. Nb6 {[%clk 0:02:40.6]} 19... Nf8
{[%clk 0:02:24.5]} 20. Rad1 {[%clk 0:02:22.2]} 20... Nd7 {[%clk 0:02:24.9]} 21.
Nxd7 {[%clk 0:02:08]} 21... Bxd7 {[%clk 0:02:25.8]} 22. Bc4 {[%clk 0:02:07.9]}
22... h6 {[%clk 0:02:22.2]} 23. b4 {[%clk 0:02:06.1]} 23... Raa8 {[%clk
0:02:21.6]} 24. Nd2 {[%clk 0:01:59.7]} 24... Be6 {[%clk 0:02:18.6]} 25. Bxe6
{[%clk 0:01:59.1]} 25... Rxe6 {[%clk 0:02:20.5]} 26. Kh2 {[%clk 0:01:53.6]}
26... Rd8 {[%clk 0:02:07.7]} 27. Nc4 {[%clk 0:01:50.7]} 27... Rxd1 {[%clk
0:02:03.6]} 28. Rxd1 {[%clk 0:01:50.1]} 28... Rf6 {[%clk 0:01:50.8]} 29. g3
{[%clk 0:01:44]} 29... Ng6 {[%clk 0:01:52]} 30. Qe2 {[%clk 0:01:37.8]} 30... c5
{[%clk 0:01:48.5]} 31. Rd5 {[%clk 0:01:33.3]} 31... cxb4 {[%clk 0:01:48.7]} 32.
cxb4 {[%clk 0:01:35.2]} 32... Rc6 {[%clk 0:01:48.4]} 33. Nb6 {[%clk 0:01:29]}
33... Rc2 {[%clk 0:01:47.7]} 34. Qf3 {[%clk 0:01:22.9]} 34... Nf8 {[%clk
0:01:42.8]} 35. Kg2 {[%clk 0:01:13.5]} 35... Qe7 {[%clk 0:01:35.2]} 36. b5
{[%clk 0:01:07.5]} 36... axb5 {[%clk 0:01:27.8]} 37. Rxb5 {[%clk 0:01:09.4]}
37... Ra2 {[%clk 0:01:24.8]} 38. Nd5 {[%clk 0:01:06.1]} 38... Qd7 {[%clk
0:01:20.4]} 39. Rc5 {[%clk 0:00:48.7]} 39... Ne6 {[%clk 0:01:17.5]} 40. Qg4
{[%clk 0:00:44.5]} 40... Qd8 {[%clk 0:01:02.9]} 41. Rc8 {[%clk 0:00:43.3]} 41...
Qxc8 {[%clk 0:01:01.2]} 42. Ne7+ {[%clk 0:00:43.6]} 42... Kf8 {[%clk 0:01:02]}
43. Nxc8 {[%clk 0:00:43.6]} 43... Rxa5 {[%clk 0:01:02.2]} 44. Nd6 {[%clk
0:00:42.2]} 44... Ra6 {[%clk 0:00:59.2]} 45. Nxb7 {[%clk 0:00:36.6]} 45... g6
{[%clk 0:00:55.3]} 46. Qe2 {[%clk 0:00:27.8]} 46... Rb6 {[%clk 0:00:55.6]} 47.
Na5 {[%clk 0:00:25.7]} 47... h5 {[%clk 0:00:53.1]} 48. h4 {[%clk 0:00:25.1]}
48... Kg7 {[%clk 0:00:53.8]} 49. Nc4 {[%clk 0:00:26.3]} 49... Rb5 {[%clk
0:00:54.8]} 50. Nd6 {[%clk 0:00:25.1]} 50... Rb6 {[%clk 0:00:54]} 51. Nc4 {[%clk
0:00:24.4]} 51... Rb5 {[%clk 0:00:55.1]} 52. Ne3 {[%clk 0:00:25.8]} 52... Nd4
{[%clk 0:00:55.8]} 53. Qd3 {[%clk 0:00:26.7]} 53... Rb3 {[%clk 0:00:54]} 54. Qc4
{[%clk 0:00:27.6]} 54... Rb5 {[%clk 0:00:53.5]} 55. Qc7 {[%clk 0:00:27.6]} 55...
Ne6 {[%clk 0:00:52.8]} 56. Qd7 {[%clk 0:00:27.4]} 56... Rc5 {[%clk 0:00:51.6]}
57. Nd5 {[%clk 0:00:27.9]} 57... Rc2 {[%clk 0:00:47.6]} 58. Qe7 {[%clk 0:00:28]}
58... Rc8 {[%clk 0:00:45.7]} 59. Qf6+ {[%clk 0:00:28.4]} 59... Kh6 {[%clk
0:00:46.1]} 60. Ne7 {[%clk 0:00:25.5]} 60... Rf8 {[%clk 0:00:43.1]} 61. Nf5+
{[%clk 0:00:23.2]} 61... Kh7 {[%clk 0:00:44]} 62. Qe7 {[%clk 0:00:24.2]} 62...
Kg8 {[%clk 0:00:38.1]} 63. Nd6 {[%clk 0:00:19.8]} 63... Kg7 {[%clk 0:00:38.7]}
64. Ne8+ {[%clk 0:00:19.4]} 64... Kg8 {[%clk 0:00:39.3]} 65. Nc7 {[%clk
0:00:19.8]} 65... Nxc7 {[%clk 0:00:37.9]} 66. Qxc7 {[%clk 0:00:21.7]} 66... Re8
{[%clk 0:00:39.2]} 67. Qd7 {[%clk 0:00:22.8]} 67... Re6 {[%clk 0:00:40.4]} 68.
Kf3 {[%clk 0:00:22.2]} 68... Kg7 {[%clk 0:00:41.5]} 69. Qc7 {[%clk 0:00:21.7]}
69... Kf6 {[%clk 0:00:42.7]} 70. Ke3 {[%clk 0:00:22.5]} 70... Ra6 {[%clk
0:00:43.3]} 71. Qd8+ {[%clk 0:00:22.7]} 71... Kg7 {[%clk 0:00:44.1]} 72. Qe7
{[%clk 0:00:23]} 72... Re6 {[%clk 0:00:44.9]} 73. Qc7 {[%clk 0:00:23.4]} 73...
Kf6 {[%clk 0:00:46]} 74. f4 {[%clk 0:00:24.1]} 74... exf4+ {[%clk 0:00:46.1]}
75. gxf4 {[%clk 0:00:26]} 75... Kg7 {[%clk 0:00:47.3]} 76. Kf3 {[%clk
0:00:26.2]} 76... Kf6 {[%clk 0:00:48.1]} 77. Qc3+ {[%clk 0:00:25.5]} 77... Ke7
{[%clk 0:00:49.2]} 78. f5 {[%clk 0:00:26.7]} 78... gxf5 {[%clk 0:00:50]} 79.
exf5 {[%clk 0:00:28.6]} 79... Rh6 {[%clk 0:00:49.4]} 80. Qe3+ {[%clk 0:00:27.6]}
1-0

[Event "*** Titled Tuesday Blitz"]
[Site "Chess.com"]
[Date "2019.11.05"]
[Round "8"]
[White "MartinZumsande"]
[Black "Orest_Vovk"]
[Result "1-0"]
[WhiteElo "2580"]
[BlackElo "2423"]
[TimeControl "180+2"]
[EndTime "14:57:24 PST"]
[Termination "MartinZumsande won by checkmate"]

1. e4 {[%clk 0:03:01.9]} 1... Nc6 {[%clk 0:02:59.5]} 2. d4 {[%clk 0:03:00.9]}
2... e5 {[%clk 0:02:59.6]} 3. Nf3 {[%clk 0:03:01.1]} 3... Nxd4 {[%clk
0:02:58.1]} 4. Nxd4 {[%clk 0:03:03]} 4... exd4 {[%clk 0:03:00]} 5. Qxd4 {[%clk
0:03:03.7]} 5... Ne7 {[%clk 0:03:01.6]} 6. Bg5 {[%clk 0:02:58]} 6... Nc6 {[%clk
0:03:01.8]} 7. Qd2 {[%clk 0:02:56.3]} 7... Bb4 {[%clk 0:02:59.1]} 8. Bxd8 {[%clk
0:02:49.2]} 8... Bxd2+ {[%clk 0:02:59.3]} 9. Nxd2 {[%clk 0:02:50.8]} 9... Nxd8
{[%clk 0:03:00.3]} 10. O-O-O {[%clk 0:02:51]} 10... d6 {[%clk 0:03:00.6]} 11. f4
{[%clk 0:02:45.8]} 11... Ne6 {[%clk 0:02:59.6]} 12. g3 {[%clk 0:02:43.9]} 12...
O-O {[%clk 0:02:55.8]} 13. Bg2 {[%clk 0:02:44.9]} 13... Nc5 {[%clk 0:02:54.7]}
14. Nc4 {[%clk 0:02:37.6]} 14... Bg4 {[%clk 0:02:54]} 15. Rd2 {[%clk 0:02:38.1]}
15... Rfe8 {[%clk 0:02:52.8]} 16. Re1 {[%clk 0:02:29.8]} 16... Rad8 {[%clk
0:02:49.5]} 17. h3 {[%clk 0:02:29]} 17... Be6 {[%clk 0:02:45.8]} 18. Na5 {[%clk
0:02:17.9]} 18... Bc8 {[%clk 0:02:41.6]} 19. b4 {[%clk 0:02:10.1]} 19... Na4
{[%clk 0:02:27.5]} 20. c4 {[%clk 0:01:53.9]} 20... Kf8 {[%clk 0:02:05.8]} 21.
Kc2 {[%clk 0:01:54]} 21... Nb6 {[%clk 0:01:56.5]} 22. Red1 {[%clk 0:01:47.2]}
22... Ke7 {[%clk 0:01:46.6]} 23. e5 {[%clk 0:01:26.1]} 23... dxe5 {[%clk
0:01:45]} 24. c5 {[%clk 0:01:27.5]} 24... Rxd2+ {[%clk 0:01:34.2]} 25. Rxd2
{[%clk 0:01:27.1]} 25... Nd7 {[%clk 0:01:31.1]} 26. Nxb7 {[%clk 0:01:08.9]}
26... exf4 {[%clk 0:01:12.1]} 27. Re2+ {[%clk 0:01:04.2]} 27... Kf8 {[%clk
0:01:10.7]} 28. Rxe8+ {[%clk 0:01:05.3]} 28... Kxe8 {[%clk 0:01:12.6]} 29. gxf4
{[%clk 0:01:06.7]} 29... Bxb7 {[%clk 0:01:09.4]} 30. Bxb7 {[%clk 0:01:07.1]}
30... Nf6 {[%clk 0:01:08.2]} 31. Kd3 {[%clk 0:00:53.7]} 31... Ke7 {[%clk
0:00:58.6]} 32. a4 {[%clk 0:00:37.7]} 32... Nh5 {[%clk 0:00:44.8]} 33. Ke4
{[%clk 0:00:37]} 33... Ng3+ {[%clk 0:00:44]} 34. Ke5 {[%clk 0:00:30.6]} 34...
f6+ {[%clk 0:00:33.3]} 35. Kd5 {[%clk 0:00:31.5]} 35... Ne2 {[%clk 0:00:29.6]}
36. Kc6 {[%clk 0:00:25.4]} 36... Kd8 {[%clk 0:00:28.7]} 37. Kb5 {[%clk
0:00:22.9]} 37... Nc3+ {[%clk 0:00:22.6]} 38. Ka5 {[%clk 0:00:16.7]} 38... g5
{[%clk 0:00:19.1]} 39. fxg5 {[%clk 0:00:17.2]} 39... fxg5 {[%clk 0:00:21]} 40.
Bf3 {[%clk 0:00:18.1]} 40... Kc8 {[%clk 0:00:17.1]} 41. b5 {[%clk 0:00:19.5]}
41... Nb1 {[%clk 0:00:14.7]} 42. Be4 {[%clk 0:00:19.1]} 42... Nd2 {[%clk
0:00:12.9]} 43. Bxh7 {[%clk 0:00:20.3]} 43... Nf3 {[%clk 0:00:11.4]} 44. Bf5+
{[%clk 0:00:16.7]} 44... Kb8 {[%clk 0:00:10.6]} 45. Bg4 {[%clk 0:00:16.9]} 45...
Ne5 {[%clk 0:00:09.3]} 46. Kb4 {[%clk 0:00:17.8]} 46... c6 {[%clk 0:00:10.2]}
47. Kc3 {[%clk 0:00:15.8]} 47... cxb5 {[%clk 0:00:08.4]} 48. axb5 {[%clk
0:00:17.7]} 48... Kc7 {[%clk 0:00:09.6]} 49. Kd4 {[%clk 0:00:18.9]} 49... Ng6
{[%clk 0:00:08.4]} 50. Kd5 {[%clk 0:00:19.2]} 50... Nf4+ {[%clk 0:00:08.9]} 51.
Ke4 {[%clk 0:00:19.7]} 51... Ng2 {[%clk 0:00:06.9]} 52. Kf5 {[%clk 0:00:19.8]}
52... Ne1 {[%clk 0:00:06.8]} 53. Kxg5 {[%clk 0:00:20.4]} 53... Nd3 {[%clk
0:00:08.4]} 54. c6 {[%clk 0:00:21.9]} 54... a6 {[%clk 0:00:07.7]} 55. bxa6
{[%clk 0:00:22.5]} 55... Kxc6 {[%clk 0:00:08.8]} 56. h4 {[%clk 0:00:23.1]} 56...
Nc5 {[%clk 0:00:07.2]} 57. Be2 {[%clk 0:00:23.6]} 57... Kb6 {[%clk 0:00:05.1]}
58. h5 {[%clk 0:00:24.3]} 58... Ne6+ {[%clk 0:00:05.7]} 59. Kf5 {[%clk
0:00:20.7]} 59... Nd4+ {[%clk 0:00:06.7]} 60. Kg4 {[%clk 0:00:19.4]} 60... Nxe2
{[%clk 0:00:08.6]} 61. h6 {[%clk 0:00:20.9]} 61... Nd4 {[%clk 0:00:07.1]} 62. h7
{[%clk 0:00:22.3]} 62... Kxa6 {[%clk 0:00:07.5]} 63. h8=Q {[%clk 0:00:23.5]}
63... Nc6 {[%clk 0:00:09.4]} 64. Qb2 {[%clk 0:00:23.6]} 64... Na5 {[%clk
0:00:09.6]} 65. Kf5 {[%clk 0:00:23.2]} 65... Nc6 {[%clk 0:00:10.3]} 66. Qc3
{[%clk 0:00:23]} 66... Kb5 {[%clk 0:00:10.4]} 67. Ke6 {[%clk 0:00:23.4]} 67...
Nb4 {[%clk 0:00:09.8]} 68. Kd6 {[%clk 0:00:23.2]} 68... Na6 {[%clk 0:00:08.6]}
69. Qc6+ {[%clk 0:00:22.2]} 69... Ka5 {[%clk 0:00:09.6]} 70. Qb7 {[%clk
0:00:23]} 70... Nb4 {[%clk 0:00:09.6]} 71. Kc5 {[%clk 0:00:22.8]} 71... Nd3+
{[%clk 0:00:08.9]} 72. Kc4 {[%clk 0:00:18.1]} 72... Ne5+ {[%clk 0:00:09.8]} 73.
Kd4 {[%clk 0:00:18.7]} 73... Ng4 {[%clk 0:00:06.9]} 74. Qa7+ {[%clk 0:00:17.3]}
74... Kb4 {[%clk 0:00:07.1]} 75. Qd7 {[%clk 0:00:18.6]} 75... Nf2 {[%clk
0:00:07.3]} 76. Qb7+ {[%clk 0:00:18.8]} 76... Ka5 {[%clk 0:00:07.3]} 77. Kc4
{[%clk 0:00:16.8]} 77... Nd3 {[%clk 0:00:06.6]} 78. Qb5# {[%clk 0:00:17.8]} 1-0